bitfinex/quotes_BTCUSD_20250303
["timestamp","ask_amount","ask_price","bid_price","bid_amount"]
[1741036728439,0.230953,86598.0,86595.0,0.00028899]
[1741036728640,0.230948,86600.0,86595.0,0.00028899]
[1741036728948,0.230935,86605.0,86595.0,0.00028899]
[1741036729162,0.230935,86605.0,86596.0,0.230956]
[1741036729368,0.230935,86605.0,86595.0,0.00028899]
[1741036729601,0.230904,86616.0,86595.0,0.00028899]
[1741036729806,0.3,86615.0,86595.0,0.00028899]
[1741036730009,0.230941,86602.0,86595.0,0.00028899]
[1741036730214,0.3,86615.0,86595.0,0.00028899]
[1741036730435,0.230957,86596.0,86595.0,0.00028899]
[1741036732232,0.23982642,86596.0,86595.0,0.00028899]
[1741036732403,0.23962642,86596.0,86595.0,0.00028899]
[1741036735766,0.53962642,86596.0,86595.0,0.00028899]
[1741036737604,0.30886942,86596.0,86595.0,0.00028899]
[1741036737812,0.0003402,86606.0,86599.0,0.0802]
[1741036738215,0.0003402,86606.0,86595.0,0.00028899]
[1741036738542,0.230933,86605.0,86595.0,0.00028899]
[1741036738699,0.230937,86604.0,86595.0,0.00028899]
[1741036738894,0.0003402,86606.0,86595.0,0.00028899]
[1741036739096,0.230948,86600.0,86595.0,0.00028899]
[1741036739329,0.230957,86596.0,86595.0,0.00028899]
[1741036739685,0.230952,86598.0,86595.0,0.00028899]
[1741036739883,0.230957,86596.0,86595.0,0.00028899]
[1741036741673,0.530957,86596.0,86595.0,0.00028899]
[1741036741801,0.3,86596.0,86595.0,0.00028899]
[1741036742044,0.23095,86599.0,86595.0,0.00028899]
[1741036742211,0.0003402,86606.0,86595.0,0.00028899]
[1741036742408,0.230957,86596.0,86595.0,0.00028899]
[1741036743195,0.3,86597.0,86595.0,0.00028899]
[1741036743402,0.23095,86599.0,86595.0,0.00028899]
[1741036743403,0.0003402,86624.0,86595.0,0.00028899]
[1741036743603,0.230927,86608.0,86595.0,0.00028899]
[1741036743810,0.23974874,86610.0,86599.0,0.230949]
[1741036744147,0.230923,86609.0,86597.0,0.230952]
[1741036744354,0.230904,86616.0,86605.0,0.230933]
[1741036744672,0.230917,86612.0,86603.0,0.0823]
[1741036744872,0.230918,86611.0,86603.0,0.0823]
[1741036745313,0.461834,86612.0,86603.0,0.0823]
[1741036745526,0.04720172,86623.0,86605.0,0.230933]
[1741036746160,0.0086046,86622.0,86605.0,0.230933]
[1741036746379,0.04720172,86623.0,86605.0,0.230933]
[1741036747025,0.10199434,86626.0,86605.0,0.230933]
[1741036747232,0.10199434,86626.0,86623.0,0.230885]
[1741036747438,0.10199434,86626.0,86623.0,0.311085]
[1741036747648,0.10199434,86626.0,86623.0,0.284085]
[1741036748582,0.10199434,86642.0,86623.0,0.284085]
[1741036748796,0.04602788,86634.0,86623.0,0.284085]
[1741036749678,0.230874,86628.0,86623.0,0.0802]
[1741036749860,0.230866,86631.0,86614.0,0.0757]
[1741036750063,0.04602788,86634.0,86614.0,0.306607]
[1741036750239,0.04602788,86634.0,86623.0,0.230885]
[1741036750641,0.04602788,86634.0,86614.0,0.0757]
[1741036750950,0.04602788,86634.0,86617.0,0.230899]
[1741036750951,0.230873,86628.0,86617.0,0.230899]
[1741036751146,0.04602788,86634.0,86623.0,0.230885]
[1741036751448,0.10199434,86642.0,86623.0,0.230885]
[1741036751878,0.230842,86639.0,86623.0,0.230885]
[1741036752170,0.14808734,86642.0,86623.0,0.602285]
[1741036752317,0.14808734,86642.0,86641.0,0.230837]
[1741036752318,0.10199434,86642.0,86641.0,0.230837]
[1741036752524,0.00034,86648.0,86647.0,0.230821]
[1741036752729,0.00045875,86648.0,86647.0,0.230821]
[1741036753185,0.00045875,86648.0,86642.0,0.0499]
[1741036753638,0.00045875,86648.0,86643.0,0.230829]
[1741036753844,0.00045875,86648.0,86642.0,0.280732]
[1741036754358,0.00045875,86648.0,86642.0,0.280734]
[1741036754590,0.00045875,86648.0,86642.0,0.0499]
[1741036754770,0.00045875,86648.0,86641.0,0.3972]
[1741036754771,0.4617874,86684.0,86641.0,0.3972]
[1741036754992,0.4617874,86684.0,86642.0,0.3]
[1741036754993,0.230785,86661.0,86642.0,0.3]
[1741036755185,0.230775,86665.0,86643.0,0.230832]
[1741036755343,0.230775,86665.0,86654.0,0.230801]
[1741036755550,0.15001287,86674.0,86644.0,0.3]
[1741036755871,0.15001287,86674.0,86648.0,0.0463]
[1741036755872,0.04801853,86674.0,86648.0,0.0463]
[1741036756070,0.04801853,86674.0,86664.0,0.230774]
[1741036756284,0.04801853,86674.0,86667.0,0.0809]
[1741036756635,0.00039584,86674.0,86667.0,0.0809]
[1741036756836,0.04651167,86674.0,86667.0,0.0809]
[1741036757042,0.230752,86673.0,86667.0,0.0809]
[1741036757265,0.00039584,86674.0,86667.0,0.0809]
[1741036757467,0.04797073,86674.0,86667.0,0.0809]
[1741036757694,0.04797073,86674.0,86667.0,0.0709]
[1741036757900,0.230747,86675.0,86667.0,0.0709]
[1741036758103,0.04723601,86674.0,86667.0,0.0709]
[1741036758428,0.00011868,86675.0,86667.0,0.0709]
[1741036758700,0.00011868,86675.0,86668.0,0.230765]
[1741036758929,0.04663928,86675.0,86667.0,0.0709]
[1741036759104,0.00011868,86675.0,86667.0,0.0709]
[1741036759306,0.23086668,86675.0,86667.0,0.0709]
[1741036759446,0.00011868,86675.0,86667.0,0.301667]
[1741036759653,0.00011868,86675.0,86669.0,0.230763]
[1741036759863,0.00011868,86675.0,86673.0,0.23075]
[1741036760069,0.00011868,86675.0,86674.0,0.230749]
[1741036760284,0.00011868,86675.0,86674.0,0.278049]
[1741036761356,0.00011868,86675.0,86674.0,0.599549]
[1741036762609,0.00011868,86675.0,86674.0,1.215449]
[1741036763913,0.0003404,86684.0,86675.0,0.19988132]
[1741036764134,0.0003404,86684.0,86683.0,0.230725]
[1741036764293,0.0003404,86684.0,86675.0,0.19988132]
[1741036764786,0.230727,86683.0,86675.0,0.19988132]
[1741036764990,0.2310644,86684.0,86675.0,0.43062632]
[1741036765313,0.0003404,86684.0,86675.0,0.19988132]
[1741036765513,0.0003404,86684.0,86676.0,0.230742]
[1741036765813,0.2310644,86684.0,86676.0,0.230742]
[1741036766019,0.2310644,86684.0,86675.0,0.19988132]
[1741036766020,0.0003404,86684.0,86677.0,0.00161515]
[1741036766174,0.0003404,86684.0,86683.0,0.230725]
[1741036766919,0.0003404,86684.0,86676.0,0.230744]
[1741036767267,0.2310634,86684.0,86675.0,0.19988132]
[1741036767408,0.230729,86682.0,86675.0,0.19988132]
[1741036767609,0.0003404,86684.0,86675.0,0.19988132]
[1741036768056,0.2310634,86684.0,86675.0,0.19988132]
[1741036768260,0.0003404,86684.0,86675.0,0.19988132]
[1741036768459,0.0003404,86684.0,86676.0,0.230742]
[1741036768682,0.230725,86683.0,86675.0,0.43062732]
[1741036768881,0.0003404,86684.0,86681.0,0.230728]
[1741036769084,0.0003404,86684.0,86683.0,0.230725]
[1741036771279,0.0003404,86684.0,86683.0,0.356025]
[1741036771681,0.0003404,86684.0,86683.0,0.977525]
[1741036771881,2e-07,86693.0,86692.0,0.530701]
[1741036772144,2e-07,86693.0,86692.0,0.706801]
[1741036772812,2e-07,86693.0,86692.0,0.606801]
[1741036775870,2e-07,86693.0,86692.0,0.306801]
[1741036776076,2e-07,86693.0,86692.0,0.628301]
[1741036776329,2e-07,86693.0,86692.0,0.0761]
[1741036776530,2e-07,86693.0,86686.0,0.0487]
[1741036776637,2e-07,86693.0,86691.0,0.230703]
[1741036776847,2e-07,86693.0,86692.0,0.230701]
[1741036777976,2e-07,86693.0,86686.0,0.279415]
[1741036778181,2e-07,86693.0,86685.0,0.3215]
[1741036778387,2e-07,86693.0,86692.0,0.01]
[1741036778944,0.2306992,86693.0,86692.0,0.01]
[1741036779346,2e-07,86693.0,86692.0,0.01]
[1741036779488,2e-07,86693.0,86692.0,0.240701]
[1741036779934,2e-07,86693.0,86692.0,0.01]
[1741036780110,2e-07,86693.0,86692.0,0.240701]
[1741036781812,2e-07,86693.0,86692.0,0.01]
[1741036782016,2e-07,86693.0,86692.0,0.240701]
[1741036782402,2e-07,86693.0,86692.0,0.319501]
[1741036783062,2e-07,86693.0,86692.0,0.367901]
[1741036783824,2e-07,86693.0,86692.0,0.01]
[1741036784032,0.04765548,86693.0,86692.0,0.01]
[1741036784224,2e-07,86693.0,86692.0,0.01]
[1741036784649,2e-07,86693.0,86692.0,0.240701]
[1741036784846,2e-07,86693.0,86692.0,0.01]
[1741036785196,2e-07,86693.0,86692.0,0.240701]
[1741036786507,2e-07,86693.0,86692.0,0.01]
[1741036786718,0.2306992,86693.0,86692.0,0.01]
[1741036786927,2e-07,86693.0,86692.0,0.01]
[1741036787125,2e-07,86693.0,86692.0,0.240701]
[1741036793145,0.005,86701.0,86700.0,0.3306798]
[1741036793372,0.005,86701.0,86700.0,0.0999998]
[1741036793805,0.235677,86701.0,86700.0,0.0999998]
[1741036794445,0.535677,86701.0,86700.0,0.0999998]
[1741036795926,0.3,86700.0,86665.0,0.3215]
[1741036796123,0.530723,86684.0,86665.0,0.3215]
[1741036797905,0.530723,86684.0,86647.0,0.0771]
[1741036798119,0.530723,86684.0,86649.0,0.11548]
[1741036798321,0.530723,86684.0,86651.0,0.230809]
[1741036798485,0.530723,86684.0,86652.0,0.00161536]
[1741036799342,0.530723,86684.0,86663.0,0.230778]
[1741036799494,0.530723,86684.0,86658.0,0.23079]
[1741036799700,0.530723,86684.0,86659.0,0.00161531]
[1741036800509,0.530723,86684.0,86664.0,0.230774]
[1741036800685,0.530723,86684.0,86652.0,0.11544]
[1741036800886,0.530723,86684.0,86683.0,6e-07]
[1741036802329,0.530744,86676.0,86675.0,0.12156015]
[1741036802869,0.530744,86676.0,86675.0,0.10856013]
[1741036804518,0.3,86676.0,86642.0,0.00178504]
[1741036804723,0.3,86676.0,86642.0,0.00056544]
[1741036804724,0.530832,86643.0,86642.0,0.00056544]
[1741036806196,0.5788112,86643.0,86642.0,0.00056544]
[1741036806845,0.58756398,86643.0,86642.0,4.4e-07]
[1741036807146,0.91096398,86643.0,86642.0,4.4e-07]
[1741036807750,0.3,86641.0,86605.0,0.2311017]
[1741036808081,0.230924,86609.0,86605.0,0.00028838]
[1741036808299,0.23093,86606.0,86605.0,0.00028838]
[1741036808502,0.00855225,86609.0,86606.0,0.23093]
[1741036808634,0.27820946,86606.0,86605.0,0.00028838]
[1741036808835,0.23093,86606.0,86605.0,0.00028838]
[1741036809377,0.2786944,86606.0,86605.0,0.00028838]
[1741036809761,0.2786944,86606.0,86600.0,0.00499]
[1741036809762,0.230944,86601.0,86600.0,0.00495001]
[1741036810092,0.3,86605.0,86600.0,0.00506876]
[1741036810387,0.3477644,86606.0,86600.0,0.00506876]
[1741036810588,0.530931,86606.0,86600.0,0.00506876]
[1741036810790,0.230939,86603.0,86600.0,0.00506876]
[1741036811165,0.230944,86601.0,86600.0,0.00506876]
[1741036811574,0.530937,86604.0,86600.0,0.00506876]
[1741036811769,0.230944,86601.0,86600.0,0.00506876]
[1741036812775,0.23094,86603.0,86600.0,0.00506876]
[1741036813236,0.3,86605.0,86600.0,0.00506876]
[1741036813410,0.3,86605.0,86601.0,0.230942]
[1741036813610,0.3,86605.0,86600.0,0.00506876]
[1741036813814,0.230944,86601.0,86600.0,0.00506876]
[1741036817533,0.530944,86601.0,86600.0,0.00506876]
[1741036818610,0.04650732,86606.0,86600.0,0.00506876]
[1741036818822,0.230936,86604.0,86600.0,0.00506876]
[1741036818978,0.230936,86604.0,86600.0,0.00523836]
[1741036819380,0.230933,86605.0,86600.0,0.00523836]
[1741036819881,0.230944,86601.0,86600.0,0.00523836]
[1741036820063,0.230944,86601.0,86600.0,0.00527836]
[1741036823327,0.23094,86603.0,86600.0,0.00527836]
[1741036823524,0.04663722,86606.0,86600.0,0.23622236]
[1741036823745,0.3,86607.0,86600.0,0.00527836]
[1741036823746,0.230936,86604.0,86600.0,0.00527836]
[1741036823984,0.230935,86605.0,86600.0,0.00527836]
[1741036824133,0.530928,86607.0,86600.0,0.00527836]
[1741036824328,0.230944,86601.0,86600.0,0.00527836]
[1741036826199,0.230941,86603.0,86600.0,0.00527836]
[1741036826496,0.230944,86601.0,86600.0,0.00527836]
[1741036828955,0.230933,86605.0,86600.0,0.00527836]
[1741036829175,0.20261783,86605.0,86600.0,0.00527836]
[1741036829648,0.230944,86601.0,86600.0,0.00527836]
[1741036830001,0.530944,86601.0,86600.0,0.00527836]
[1741036830386,0.3,86601.0,86600.0,0.00527836]
[1741036830989,0.2312806,86602.0,86600.0,0.00527836]
[1741036831456,0.0003396,86602.0,86600.0,0.00527836]
[1741036832216,0.230944,86601.0,86600.0,0.00527836]
[1741036832792,0.0003396,86602.0,86601.0,0.314144]
[1741036834865,0.0003396,86602.0,86600.0,0.00527836]
[1741036834866,0.230944,86601.0,86600.0,0.00527836]
[1741036835625,0.0003396,86602.0,86600.0,0.00527836]
[1741036835760,0.0003396,86602.0,86601.0,0.230944]
[1741036838887,0.0003396,86602.0,86601.0,0.308944]
[1741036840716,0.0003396,86602.0,86601.0,0.630444]
[1741036840942,0.0003396,86602.0,86601.0,0.792284]
[1741036841495,0.0003396,86602.0,86601.0,0.4465]
[1741036841683,0.0003396,86602.0,86601.0,0.677444]
[1741036842283,0.0003396,86602.0,86601.0,0.630444]
[1741036842435,0.0003396,86602.0,86601.0,0.552444]
[1741036843061,0.0003396,86602.0,86601.0,0.3215]
[1741036843258,0.0003396,86602.0,86600.0,0.00527836]
[1741036843259,0.230944,86601.0,86600.0,0.00527836]
[1741036843458,0.0003396,86602.0,86600.0,0.00527836]
[1741036843662,0.0003396,86602.0,86601.0,0.230944]
[1741036845239,0.0003396,86602.0,86601.0,0.313244]
[1741036845515,0.0003396,86602.0,86601.0,0.358944]
[1741036846490,0.0003396,86602.0,86600.0,0.00527836]
[1741036846835,0.230944,86601.0,86600.0,0.00527836]
[1741036848428,0.0003396,86602.0,86601.0,0.230944]
[1741036848625,0.04744003,86602.0,86600.0,0.00527836]
[1741036848825,0.230944,86601.0,86600.0,0.00527836]
[1741036849053,0.0003396,86602.0,86600.0,0.00527836]
[1741036849225,0.04699742,86602.0,86600.0,0.00527836]
[1741036850033,0.230944,86601.0,86600.0,0.00527836]
[1741036850441,0.04699742,86602.0,86600.0,0.00527836]
[1741036851728,0.04699742,86602.0,86600.0,0.23622236]
[1741036851977,0.04699742,86602.0,86600.0,0.00527836]
[1741036852201,6e-07,86602.0,86601.0,0.35466053]
[1741036852362,2e-07,86605.0,86604.0,0.230936]
[1741036852612,2e-07,86605.0,86604.0,0.307036]
[1741036853757,2e-07,86605.0,86604.0,1.468836]
[1741036854386,0.3,86652.0,86604.0,1.468836]
[1741036854387,0.230786,86661.0,86633.0,0.046]
[1741036854542,0.06504111,86670.0,86634.0,0.43771561]
[1741036854913,0.06504111,86670.0,86642.0,0.346251]
[1741036855083,0.06504111,86670.0,86651.0,0.230808]
[1741036855084,0.230787,86660.0,86651.0,0.230808]
[1741036855410,0.04595072,86670.0,86640.0,0.3215]
[1741036855604,0.851105,86669.0,86640.0,0.3215]
[1741036855808,0.230826,86646.0,86640.0,0.3215]
[1741036856020,0.230839,86641.0,86634.0,0.00011875]
[1741036856219,0.230846,86638.0,86634.0,0.00011875]
[1741036856515,0.230853,86635.0,86634.0,0.00011875]
[1741036857280,0.3,86641.0,86634.0,0.00011875]
[1741036857743,0.230853,86635.0,86634.0,0.00011875]
[1741036858274,0.230852,86636.0,86634.0,0.00011875]
[1741036858449,0.230853,86635.0,86634.0,0.00011875]
[1741036860126,0.530853,86635.0,86634.0,0.00011875]
[1741036860869,0.530853,86635.0,86600.0,0.10845717]
[1741036860870,0.230904,86616.0,86600.0,0.10845717]
[1741036861071,0.3,86635.0,86600.0,0.10845717]
[1741036861072,0.230941,86602.0,86600.0,0.10845717]
[1741036861273,0.230929,86607.0,86600.0,0.10845717]
[1741036861695,0.23092,86610.0,86600.0,0.00515961]
[1741036861883,0.230913,86613.0,86603.0,0.230937]
[1741036862090,0.230913,86613.0,86604.0,0.230934]
[1741036862249,0.3,86626.0,86600.0,0.00515961]
[1741036862250,0.3,86618.0,86600.0,0.00515961]
[1741036862466,0.3,86630.0,86600.0,0.00677608]
[1741036862817,0.230874,86628.0,86619.0,0.230895]
[1741036863105,0.3,86635.0,86600.0,0.00515961]
[1741036863307,0.230888,86623.0,86602.0,0.3231162]
[1741036863604,0.04607927,86630.0,86602.0,0.3215]
[1741036863809,0.230882,86625.0,86616.0,0.230903]
[1741036864022,0.230882,86625.0,86617.0,0.2309]
[1741036864239,0.230882,86625.0,86617.0,0.230901]
[1741036864435,0.230884,86624.0,86616.0,0.230903]
[1741036864581,0.230883,86624.0,86615.0,0.230906]
[1741036864789,0.230886,86623.0,86614.0,0.230909]
[1741036865171,0.23088,86625.0,86614.0,0.230909]
[1741036865172,0.3,86624.0,86616.0,0.230903]
[1741036865379,0.3,86624.0,86614.0,0.230907]
[1741036865598,0.230931,86606.0,86602.0,0.3215]
[1741036865796,0.230938,86603.0,86602.0,0.3215]
[1741036866855,0.230941,86602.0,86589.0,0.0132209]
[1741036867081,0.530941,86602.0,86589.0,0.0132209]
[1741036869501,0.530941,86602.0,86589.0,0.2441949]
[1741036869994,0.530941,86602.0,86589.0,0.0132209]
[1741036870411,0.530941,86602.0,86589.0,0.2441949]
[1741036870645,0.530941,86602.0,86589.0,0.0132209]
[1741036871383,0.530941,86602.0,86590.0,0.230972]
[1741036871636,0.3234,86633.0,86611.0,0.230916]
[1741036871826,0.230883,86624.0,86613.0,0.23091]
[1741036871946,0.3,86619.0,86613.0,0.23091]
[1741036872144,0.15028846,86630.0,86597.0,0.0782]
[1741036872145,0.15907821,86630.0,86599.0,0.049]
[1741036872349,0.3,86628.0,86599.0,0.049]
[1741036872706,0.230901,86617.0,86610.0,0.230917]
[1741036872876,0.230902,86617.0,86609.0,0.230922]
[1741036873077,0.230936,86604.0,86601.0,0.0001698]
[1741036873701,0.230941,86602.0,86601.0,0.0001698]
[1741036873911,0.3,86629.0,86601.0,0.0001698]
[1741036874135,0.3,86627.0,86608.0,0.230923]
[1741036874368,0.230919,86611.0,86601.0,0.0001698]
[1741036874583,0.230929,86607.0,86601.0,0.0001698]
[1741036874736,0.230907,86615.0,86606.0,0.230929]
[1741036875069,0.3,86627.0,86601.0,0.0001698]
[1741036875268,0.3,86620.0,86614.0,0.230908]
[1741036875479,0.230886,86623.0,86601.0,0.0001698]
[1741036875688,0.33199159,86634.0,86616.0,0.230904]
[1741036875884,0.33199159,86634.0,86601.0,0.00178608]
[1741036875885,0.00859159,86634.0,86603.0,0.3]
[1741036876061,0.3234,86648.0,86629.0,0.230869]
[1741036876261,0.00011862,86630.0,86629.0,0.230869]
[1741036878079,0.00011862,86630.0,86629.0,0.852369]
[1741036878493,6.2e-07,86630.0,86629.0,1.492669]
[1741036878720,0.10389681,86666.0,86634.0,0.679656]
[1741036878898,0.10389681,86666.0,86665.0,0.230773]
[1741036879229,0.10401559,86666.0,86665.0,0.230773]
[1741036879656,0.10401559,86666.0,86654.0,0.11416]
[1741036879862,0.10401559,86666.0,86665.0,0.230773]
[1741036881042,0.10401559,86666.0,86665.0,0.630373]
[1741036881647,0.10401559,86666.0,86665.0,0.3996]
[1741036881787,0.00011878,86666.0,86665.0,0.630373]
[1741036881984,0.00011878,86666.0,86665.0,0.3996]
[1741036882328,0.00011878,86666.0,86665.0,0.3215]
[1741036882688,0.23088978,86666.0,86665.0,0.3215]
[1741036884629,0.23088978,86666.0,86646.0,0.15934]
[1741036884630,0.230804,86654.0,86646.0,0.0453]
[1741036884801,0.230801,86655.0,86648.0,0.230818]
[1741036884999,0.00011878,86666.0,86646.0,0.0453]
[1741036885247,0.230826,86645.0,86642.0,0.0798]
[1741036885551,0.230825,86646.0,86639.0,0.230841]
[1741036885696,0.230827,86645.0,86638.0,0.230844]
[1741036886179,0.230812,86651.0,86639.0,0.230842]
[1741036886296,0.230812,86651.0,86643.0,0.230829]
[1741036886500,0.230818,86649.0,86636.0,0.11404]
[1741036886709,0.230818,86649.0,86642.0,0.230834]
[1741036886908,0.230818,86649.0,86642.0,0.461668]
[1741036887152,0.230818,86649.0,86642.0,0.230834]
[1741036887354,0.230818,86649.0,86634.0,0.3215]
[1741036887355,0.230848,86637.0,86626.0,0.3215]
[1741036887552,0.230874,86627.0,86626.0,0.3215]
[1741036887753,0.230883,86624.0,86615.0,0.230906]
[1741036887953,0.04097078,86637.0,86620.0,0.230891]
[1741036887954,0.230878,86626.0,86620.0,0.230891]
[1741036888353,0.230873,86628.0,86621.0,0.23089]
[1741036888794,0.04097078,86637.0,86622.0,0.230888]
[1741036888957,0.346229,86648.0,86622.0,0.230888]
[1741036888958,0.230867,86630.0,86624.0,0.230881]
[1741036889155,0.0401313,86638.0,86622.0,0.230888]
[1741036889383,0.230872,86628.0,86622.0,0.230888]
[1741036889632,0.230868,86630.0,86624.0,0.23088]
[1741036889792,0.230848,86637.0,86621.0,0.00011862]
[1741036889993,0.230869,86630.0,86621.0,0.23100862]
[1741036890196,0.00857558,86648.0,86621.0,0.00011862]
[1741036890383,0.230834,86642.0,86621.0,0.00011862]
[1741036890582,0.3234,86662.0,86621.0,0.00011862]
[1741036890583,0.3,86661.0,86625.0,0.230878]
[1741036890794,0.230863,86632.0,86621.0,0.00011862]
[1741036891006,0.3,86647.0,86621.0,0.00173461]
[1741036891208,0.0003394,86649.0,86621.0,0.00173461]
[1741036891418,0.0003394,86649.0,86648.0,0.230818]
[1741036891789,0.0003394,86649.0,86648.0,0.307218]
[1741036892174,0.0003394,86649.0,86646.0,0.230823]
[1741036892375,0.0003394,86649.0,86648.0,0.230818]
[1741036893577,0.0003394,86649.0,86648.0,0.597418]
[1741036893890,0.0003394,86649.0,86648.0,1.55805181]
[1741036894096,4e-07,86649.0,86648.0,1.65805181]
[1741036895095,4e-07,86649.0,86648.0,1.55805181]
[1741036897614,4e-07,86649.0,86648.0,1.65805181]
[1741036897817,0.0003392,86684.0,86683.0,0.230725]
[1741036898017,0.00073528,86684.0,86683.0,0.666025]
[1741036898241,2.8e-07,86684.0,86683.0,1.506325]
[1741036899388,2.8e-07,86684.0,86683.0,1.54685192]
[1741036899661,2.8e-07,86684.0,86683.0,1.206325]
[1741036900084,2.8e-07,86684.0,86683.0,0.9756]
[1741036900237,2.8e-07,86684.0,86683.0,1.206325]
[1741036902853,0.00016998,86684.0,86683.0,1.206325]
[1741036903627,7.8e-07,86689.0,86688.0,0.230712]
[1741036903832,0.00011875,86689.0,86688.0,0.230712]
[1741036904059,7.5e-07,86689.0,86688.0,0.230712]
[1741036904192,7.5e-07,86689.0,86688.0,1.492512]
[1741036904395,7.5e-07,86689.0,86688.0,1.475312]
[1741036905721,7.5e-07,86689.0,86688.0,1.575312]
[1741036905943,7.5e-07,86689.0,86688.0,1.475312]
[1741036908046,7.5e-07,86689.0,86688.0,1.575312]
[1741036909883,7.5e-07,86689.0,86688.0,1.475312]
[1741036910307,7.5e-07,86689.0,86688.0,1.588832]
[1741036913330,7.5e-07,86689.0,86688.0,1.688832]
[1741036913864,7.5e-07,86689.0,86688.0,1.588832]
[1741036915601,7.5e-07,86689.0,86688.0,1.048532]
[1741036916616,7.5e-07,86689.0,86688.0,0.935012]
[1741036916798,7.5e-07,86689.0,86688.0,1.048412]
[1741036917185,7.5e-07,86689.0,86688.0,1.0487514]
[1741036917586,0.00017045,86689.0,86688.0,0.5525514]
[1741036917794,0.00017045,86689.0,86688.0,0.3218394]
[1741036918004,0.00017045,86689.0,86688.0,0.0003394]
[1741036918527,0.2714073,86689.0,86688.0,0.0003394]
[1741036919134,0.0406983,86689.0,86688.0,0.0003394]
[1741036919338,0.00017045,86689.0,86688.0,0.2310514]
[1741036919967,0.00017045,86689.0,86688.0,0.0003394]
[1741036920557,0.00017045,86689.0,86688.0,0.2310514]
[1741036922535,0.00017045,86689.0,86688.0,0.5525514]
[1741036922942,0.00017045,86689.0,86688.0,0.3218394]
[1741036923341,0.23087945,86689.0,86688.0,0.0003394]
[1741036923576,0.00017045,86689.0,86688.0,0.0003394]
[1741036923771,0.00017045,86689.0,86688.0,0.2310514]
[1741036924323,0.00017045,86689.0,86688.0,0.5525514]
[1741036924520,0.00017045,86689.0,86688.0,0.6277514]
[1741036924719,0.00017045,86689.0,86688.0,0.66691696]
[1741036924946,0.00017045,86689.0,86688.0,0.6277514]
[1741036925471,0.00017045,86689.0,86688.0,0.66715268]
[1741036925805,0.00017045,86689.0,86688.0,0.6277514]
[1741036926010,0.00017045,86689.0,86688.0,0.5525514]
[1741036926692,0.00017045,86689.0,86688.0,0.3218794]
[1741036926899,0.27018085,86689.0,86688.0,0.0003794]
[1741036927091,0.23087945,86689.0,86688.0,0.0003794]
[1741036927226,0.270896,86689.0,86688.0,0.0003794]
[1741036927820,0.04001655,86689.0,86688.0,0.0003794]
[1741036928016,0.230709,86689.0,86688.0,0.0003794]
[1741036928443,0.5697587,86689.0,86688.0,0.0003794]
[1741036928650,0.5699284,86689.0,86688.0,0.0003794]
[1741036930669,0.56840006,86689.0,86688.0,0.0003794]
[1741036931286,0.5699284,86689.0,86688.0,0.0003794]
[1741036932723,0.3,86684.0,86655.0,0.11316]
[1741036932928,0.230773,86666.0,86659.0,0.230788]
[1741036933321,0.230744,86676.0,86661.0,0.230783]
[1741036933519,0.230715,86687.0,86647.0,0.11312]
[1741036933802,0.230778,86664.0,86648.0,0.00161542]
[1741036934157,0.3,86684.0,86658.0,0.230791]
[1741036934366,0.230774,86665.0,86656.0,0.230795]
[1741036934545,0.230779,86663.0,86656.0,0.230796]
[1741036934744,0.230779,86663.0,86654.0,0.230801]
[1741036934898,0.230772,86666.0,86647.0,0.11312]
[1741036935279,0.230764,86669.0,86656.0,0.230797]
[1741036935426,0.3,86690.0,86663.0,0.230776]
[1741036935637,0.3,86682.0,86645.0,0.0482]
[1741036935817,3.8e-07,86692.0,86684.0,0.23072]
[1741036936024,3.8e-07,86692.0,86645.0,0.0482]
[1741036936025,3.8e-07,86692.0,86688.0,0.230712]
[1741036936255,0.0001697,86689.0,86688.0,0.230712]
[1741036936789,0.0001697,86689.0,86677.0,0.230739]
[1741036937093,0.2308797,86689.0,86664.0,0.04696595]
[1741036937292,0.0001697,86689.0,86688.0,0.230712]
[1741036940429,7e-07,86689.0,86688.0,1.48667443]
[1741036943704,7e-07,86689.0,86688.0,1.49522352]
[1741036944153,7e-07,86689.0,86688.0,1.48667443]
[1741036945519,7e-07,86689.0,86688.0,1.59959443]
[1741036946748,7e-07,86689.0,86688.0,0.3215]
[1741036947476,0.230714,86688.0,86676.0,0.230742]
[1741036947632,7e-07,86689.0,86673.0,0.665131]
[1741036947633,7e-07,86689.0,86677.0,0.00161497]
[1741036947829,7e-07,86689.0,86688.0,0.230712]
[1741036948032,7e-07,86689.0,86688.0,0.354812]
[1741036949654,7e-07,86689.0,86688.0,1.516612]
[1741036952483,7e-07,86689.0,86688.0,1.216612]
[1741036952778,7e-07,86689.0,86688.0,0.664972]
[1741036953375,7e-07,86689.0,86688.0,0.964972]
[1741036954524,7e-07,86689.0,86688.0,0.664972]
[1741036955112,7e-07,86689.0,86688.0,0.3215]
[1741036955291,7e-07,86689.0,86684.0,0.23072]
[1741036955492,0.04752841,86689.0,86672.0,0.230753]
[1741036955694,7e-07,86689.0,86671.0,0.0003394]
[1741036955945,0.230753,86673.0,86671.0,0.0003394]
[1741036956078,0.230738,86679.0,86671.0,0.0003394]
[1741036956281,0.230755,86672.0,86671.0,0.0003394]
[1741036957102,0.04606511,86673.0,86672.0,0.230755]
[1741036957304,0.0811,86705.0,86671.0,0.0003394]
[1741036957503,0.0461,86710.0,86688.0,0.230712]
[1741036957725,0.04696336,86695.0,86688.0,0.230712]
[1741036958056,0.0461,86710.0,86688.0,0.230712]
[1741036958230,0.0003402,86711.0,86688.0,0.230712]
[1741036958633,0.04714208,86704.0,86688.0,0.552212]
[1741036960233,0.0003402,86711.0,86688.0,0.552212]
[1741036960911,0.0003402,86711.0,86688.0,0.852212]
[1741036964021,0.0003402,86711.0,86688.0,0.935012]
[1741036965230,0.0003402,86711.0,86688.0,0.9353514]
[1741036965573,0.230655,86710.0,86688.0,0.8525514]
[1741036965776,0.0003402,86711.0,86688.0,0.8525514]
[1741036966669,0.0003402,86711.0,86688.0,0.5525514]
[1741036966670,0.230674,86703.0,86688.0,0.5525514]
[1741036966883,0.230668,86705.0,86688.0,0.5525514]
[1741036967093,0.230666,86706.0,86688.0,0.5525514]
[1741036967442,0.2309988,86708.0,86688.0,0.5525514]
[1741036967643,0.0003398,86708.0,86688.0,0.5525514]